[Event "Late-Titled-Tuesday-Blitz-March-26-2024"]
[Site "Chess.com"]
[Date "2024.03.26"]
[Round "1"]
[White "PapaieDudu"]
[Black "Kosak12"]
[Result "0-1"]
[WhiteElo "2429"]
[BlackElo "2794"]
[TimeControl "180+1"]
[EndTime "14:05:30 PDT"]
[Termination "Kosak12 won by checkmate"]

1. e4 {[%clk 0:03:00.9]} 1... c5 {[%clk 0:02:52.9]} 2. Nf3 {[%clk 0:03:00.7]}
2... a6 {[%clk 0:02:49.7]} 3. d4 {[%clk 0:03:00.9]} 3... cxd4 {[%clk 0:02:49.1]}
4. Nxd4 {[%clk 0:03:01.5]} 4... Nf6 {[%clk 0:02:49.4]} 5. Nc3 {[%clk 0:02:59.6]}
5... e5 {[%clk 0:02:49.8]} 6. Nb3 {[%clk 0:02:56.9]} 6... Bb4 {[%clk 0:02:49.2]}
7. Bd3 {[%clk 0:02:56.1]} 7... d5 {[%clk 0:02:47.7]} 8. exd5 {[%clk 0:02:55.8]}
8... Nxd5 {[%clk 0:02:47.9]} 9. O-O {[%clk 0:02:54.3]} 9... Bxc3 {[%clk
0:02:39.2]} 10. bxc3 {[%clk 0:02:53.9]} 10... O-O {[%clk 0:02:39.1]} 11. Bd2
{[%clk 0:02:45.7]} 11... Nc6 {[%clk 0:02:32.9]} 12. g3 {[%clk 0:02:43.1]} 12...
Re8 {[%clk 0:02:20.5]} 13. a3 {[%clk 0:02:34.3]} 13... e4 {[%clk 0:02:13.8]} 14.
Be2 {[%clk 0:02:31.5]} 14... Ne5 {[%clk 0:02:06.3]} 15. Nd4 {[%clk 0:02:27.6]}
15... Qf6 {[%clk 0:02:03.2]} 16. f4 {[%clk 0:02:01.7]} 16... Nc6 {[%clk
0:01:56]} 17. Nxc6 {[%clk 0:01:47.6]} 17... Qxc6 {[%clk 0:01:54.3]} 18. c4
{[%clk 0:01:00.1]} 18... Qc5+ {[%clk 0:01:54.3]} 19. Kh1 {[%clk 0:00:59.3]}
19... Ne3 {[%clk 0:01:54.5]} 20. Bb4 {[%clk 0:00:50.8]} 20... Qc6 {[%clk
0:01:47.1]} 21. Qd4 {[%clk 0:00:47.2]} 21... Nxc2 {[%clk 0:01:38.6]} 22. Qc3
{[%clk 0:00:39]} 22... Nxa1 {[%clk 0:01:38.1]} 23. Qxa1 {[%clk 0:00:35.4]} 23...
Bh3 {[%clk 0:01:33.7]} 24. Rf2 {[%clk 0:00:28.7]} 24... e3+ {[%clk 0:01:32.9]}
25. Rf3 {[%clk 0:00:28]} 25... Bg4 {[%clk 0:01:31]} 26. Kg2 {[%clk 0:00:28.6]}
26... Bxf3+ {[%clk 0:01:30.3]} 27. Bxf3 {[%clk 0:00:29.1]} 27... Qxc4 {[%clk
0:01:30.9]} 28. Bc3 {[%clk 0:00:23.3]} 28... e2 {[%clk 0:01:29.3]} 29. Bxg7
{[%clk 0:00:22.3]} 29... e1=Q {[%clk 0:01:27.4]} 30. Qf6 {[%clk 0:00:22.1]}
30... Qcf1# {[%clk 0:01:26.8]} 0-1

[Event "Late-Titled-Tuesday-Blitz-March-26-2024"]
[Site "Chess.com"]
[Date "2024.03.26"]
[Round "1"]
[White "Vahe_Danielyan"]
[Black "HanSchut"]
[Result "1-0"]
[WhiteElo "2615"]
[BlackElo "2281"]
[TimeControl "180+1"]
[EndTime "14:05:32 PDT"]
[Termination "Vahe_Danielyan won by resignation"]

1. d4 {[%clk 0:03:00.3]} 1... Nf6 {[%clk 0:02:58.9]} 2. Nf3 {[%clk 0:02:59.5]}
2... g6 {[%clk 0:02:59.3]} 3. e3 {[%clk 0:02:53.2]} 3... Bg7 {[%clk 0:02:58.8]}
4. Bd3 {[%clk 0:02:51.5]} 4... O-O {[%clk 0:02:57.8]} 5. O-O {[%clk 0:02:50.9]}
5... d5 {[%clk 0:02:57.7]} 6. c4 {[%clk 0:02:49.1]} 6... dxc4 {[%clk 0:02:56.4]}
7. Bxc4 {[%clk 0:02:50]} 7... a6 {[%clk 0:02:56.8]} 8. Nc3 {[%clk 0:02:49.9]}
8... b5 {[%clk 0:02:57.1]} 9. Bb3 {[%clk 0:02:50.1]} 9... Bb7 {[%clk 0:02:57.4]}
10. a3 {[%clk 0:02:46.1]} 10... c5 {[%clk 0:02:57.2]} 11. dxc5 {[%clk
0:02:43.5]} 11... Nbd7 {[%clk 0:02:56.6]} 12. Qd4 {[%clk 0:02:24.6]} 12... Qc7
{[%clk 0:02:45.5]} 13. Qh4 {[%clk 0:02:05]} 13... Bxf3 {[%clk 0:02:38.2]} 14.
gxf3 {[%clk 0:02:04.7]} 14... Nxc5 {[%clk 0:02:36.3]} 15. Bc2 {[%clk 0:02:04.8]}
15... Rad8 {[%clk 0:02:27.8]} 16. e4 {[%clk 0:01:59.3]} 16... Nd3 {[%clk
0:02:21.1]} 17. Bxd3 {[%clk 0:01:59.4]} 17... Rxd3 {[%clk 0:02:20.6]} 18. Be3
{[%clk 0:01:59.5]} 18... e6 {[%clk 0:02:08.7]} 19. Rad1 {[%clk 0:01:50.5]} 19...
Rfd8 {[%clk 0:01:54.4]} 20. Bg5 {[%clk 0:01:48.9]} 20... Rxd1 {[%clk 0:01:50.6]}
21. Nxd1 {[%clk 0:01:49.8]} 21... Qe5 {[%clk 0:01:20.2]} 22. f4 {[%clk
0:01:45.6]} 22... Qxe4 {[%clk 0:01:07.9]} 23. Bxf6 {[%clk 0:01:45.6]} 23... Rd2
{[%clk 0:00:48.7]} 24. Bxg7 {[%clk 0:01:39.7]} 24... Kxg7 {[%clk 0:00:49.6]} 25.
Qg3 {[%clk 0:01:40.4]} 25... Rd3 {[%clk 0:00:43.8]} 26. Ne3 {[%clk 0:01:36.8]}
26... Rd4 {[%clk 0:00:43.2]} 27. Rc1 {[%clk 0:01:31.8]} 27... h5 {[%clk
0:00:31.9]} 28. Qg5 {[%clk 0:01:26]} 28... Qf3 {[%clk 0:00:22.1]} 29. Qe5+
{[%clk 0:01:24]} 1-0

[Event "Late-Titled-Tuesday-Blitz-March-26-2024"]
[Site "Chess.com"]
[Date "2024.03.26"]
[Round "1"]
[White "Shahdad2007"]
[Black "SuanFernandes"]
[Result "1-0"]
[WhiteElo "2633"]
[BlackElo "2311"]
[TimeControl "180+1"]
[EndTime "14:05:43 PDT"]
[Termination "Shahdad2007 won by resignation"]

1. Nf3 {[%clk 0:02:58.9]} 1... d5 {[%clk 0:02:59.4]} 2. c4 {[%clk 0:02:53.3]}
2... e6 {[%clk 0:02:59.2]} 3. g3 {[%clk 0:02:51.1]} 3... Nf6 {[%clk 0:02:59.6]}
4. Bg2 {[%clk 0:02:50.2]} 4... c5 {[%clk 0:02:59.6]} 5. cxd5 {[%clk 0:02:49]}
5... Nxd5 {[%clk 0:02:55.9]} 6. O-O {[%clk 0:02:45.9]} 6... Nc6 {[%clk
0:02:53.6]} 7. Nc3 {[%clk 0:02:32]} 7... Be7 {[%clk 0:02:38]} 8. d3 {[%clk
0:02:23.5]} 8... O-O {[%clk 0:02:37]} 9. Bd2 {[%clk 0:02:15.3]} 9... b6 {[%clk
0:02:35.3]} 10. a3 {[%clk 0:02:11.7]} 10... Bb7 {[%clk 0:02:26.8]} 11. Rc1
{[%clk 0:02:07.7]} 11... Rc8 {[%clk 0:02:23.9]} 12. Qa4 {[%clk 0:02:05.4]} 12...
Bf6 {[%clk 0:02:18]} 13. Nxd5 {[%clk 0:01:47.6]} 13... exd5 {[%clk 0:02:13.6]}
14. b4 {[%clk 0:01:44.8]} 14... Be7 {[%clk 0:01:28.3]} 15. bxc5 {[%clk
0:01:41.7]} 15... Bxc5 {[%clk 0:01:20.4]} 16. Bb4 {[%clk 0:01:35.6]} 16... Bxb4
{[%clk 0:01:13.7]} 17. axb4 {[%clk 0:01:36.5]} 17... a5 {[%clk 0:01:09.2]} 18.
bxa5 {[%clk 0:01:22.8]} 18... bxa5 {[%clk 0:01:08.8]} 19. Rc5 {[%clk 0:01:20.2]}
19... Qd6 {[%clk 0:00:51.9]} 20. Rfc1 {[%clk 0:01:16]} 20... Rfe8 {[%clk
0:00:37.2]} 21. Bh3 {[%clk 0:00:58.3]} 21... Rc7 {[%clk 0:00:32.8]} 22. Nd4
{[%clk 0:00:57.2]} 22... Nxd4 {[%clk 0:00:30]} 23. Qxe8+ {[%clk 0:00:55.8]} 1-0

[Event "Late-Titled-Tuesday-Blitz-March-26-2024"]
[Site "Chess.com"]
[Date "2024.03.26"]
[Round "1"]
[White "Vladimir_Zakhartsov"]
[Black "a_kandil"]
[Result "1-0"]
[WhiteElo "2985"]
[BlackElo "2507"]
[TimeControl "180+1"]
[EndTime "14:05:45 PDT"]
[Termination "Vladimir_Zakhartsov won by resignation"]

1. d4 {[%clk 0:03:00.9]} 1... Nf6 {[%clk 0:02:58.5]} 2. c4 {[%clk 0:03:01.4]}
2... e6 {[%clk 0:02:55.9]} 3. Nf3 {[%clk 0:03:01.8]} 3... Bb4+ {[%clk
0:02:53.8]} 4. Nbd2 {[%clk 0:03:00.8]} 4... O-O {[%clk 0:02:50.9]} 5. a3 {[%clk
0:03:01.3]} 5... Bxd2+ {[%clk 0:02:50]} 6. Bxd2 {[%clk 0:02:57.9]} 6... h6
{[%clk 0:02:45]} 7. Qc2 {[%clk 0:02:54.5]} 7... b6 {[%clk 0:02:45]} 8. e4 {[%clk
0:02:51.2]} 8... d6 {[%clk 0:02:44.3]} 9. Bd3 {[%clk 0:02:50.2]} 9... Bb7 {[%clk
0:02:43]} 10. O-O {[%clk 0:02:50]} 10... Qe7 {[%clk 0:02:38.9]} 11. e5 {[%clk
0:02:43.2]} 11... dxe5 {[%clk 0:02:38.2]} 12. Nxe5 {[%clk 0:02:43.9]} 12... Nbd7
{[%clk 0:02:32.5]} 13. Nxd7 {[%clk 0:02:30.8]} 13... Nxd7 {[%clk 0:02:13.4]} 14.
Rfe1 {[%clk 0:02:21.5]} 14... Qd6 {[%clk 0:02:08.4]} 15. Bc3 {[%clk 0:02:19.7]}
15... c5 {[%clk 0:02:06.5]} 16. Rad1 {[%clk 0:02:14.7]} 16... cxd4 {[%clk
0:01:33.9]} 17. Bxd4 {[%clk 0:02:13.8]} 17... e5 {[%clk 0:01:12.9]} 18. Bxe5
{[%clk 0:02:08]} 18... Qc5 {[%clk 0:00:16.8]} 19. Bh7+ {[%clk 0:02:01.2]} 19...
Kh8 {[%clk 0:00:16.6]} 20. Rxd7 {[%clk 0:01:22.7]} 20... Qc6 {[%clk 0:00:16.6]}
21. Rxb7 {[%clk 0:01:15.9]} 21... Qxb7 {[%clk 0:00:17.5]} 22. Be4 {[%clk
0:01:16.2]} 22... Qd7 {[%clk 0:00:11]} 23. Bxa8 {[%clk 0:01:15.3]} 23... Rxa8
{[%clk 0:00:11.9]} 1-0

[Event "Late-Titled-Tuesday-Blitz-March-26-2024"]
[Site "Chess.com"]
[Date "2024.03.26"]
[Round "1"]
[White "kagg1125"]
[Black "HansOnTwitch"]
[Result "0-1"]
[WhiteElo "2529"]
[BlackElo "3115"]
[TimeControl "180+1"]
[EndTime "14:05:47 PDT"]
[Termination "HansOnTwitch won by resignation"]

1. e4 {[%clk 0:02:51.8]} 1... c5 {[%clk 0:02:59.7]} 2. Nf3 {[%clk 0:02:47.5]}
2... Nc6 {[%clk 0:03:00.3]} 3. d4 {[%clk 0:02:46.8]} 3... cxd4 {[%clk
0:03:01.2]} 4. Nxd4 {[%clk 0:02:47.5]} 4... Nf6 {[%clk 0:03:01.6]} 5. Nc3 {[%clk
0:02:45]} 5... d6 {[%clk 0:03:01.8]} 6. Bg5 {[%clk 0:02:39.9]} 6... e6 {[%clk
0:03:01.8]} 7. Qd2 {[%clk 0:02:40.2]} 7... a6 {[%clk 0:03:01.9]} 8. O-O-O {[%clk
0:02:37.1]} 8... h6 {[%clk 0:03:01.9]} 9. Nxc6 {[%clk 0:02:31.9]} 9... bxc6
{[%clk 0:03:01.4]} 10. Bf4 {[%clk 0:02:32.8]} 10... d5 {[%clk 0:02:58.8]} 11.
Qe3 {[%clk 0:02:33.5]} 11... Bb4 {[%clk 0:02:55.5]} 12. exd5 {[%clk 0:01:51.5]}
12... cxd5 {[%clk 0:02:51.4]} 13. a3 {[%clk 0:01:42.4]} 13... Ba5 {[%clk
0:02:39.2]} 14. Qc5 {[%clk 0:01:36.5]} 14... Bb7 {[%clk 0:02:29.8]} 15. Na4
{[%clk 0:01:05.2]} 15... Rc8 {[%clk 0:02:27.3]} 16. Qa7 {[%clk 0:01:04.5]} 16...
Bc6 {[%clk 0:02:19.6]} 17. Nc3 {[%clk 0:00:14.5]} 17... Bxc3 {[%clk 0:02:17.2]}
18. bxc3 {[%clk 0:00:15.4]} 18... O-O {[%clk 0:02:17.5]} 19. f3 {[%clk 0:00:10]}
19... Qa5 {[%clk 0:02:16]} 20. Qxa6 {[%clk 0:00:10.3]} 20... Qxc3 {[%clk
0:02:16.1]} 21. Qd3 {[%clk 0:00:10.4]} 21... Qa5 {[%clk 0:02:13.4]} 22. Bd2
{[%clk 0:00:09.8]} 22... Qa8 {[%clk 0:02:10.2]} 23. Bb4 {[%clk 0:00:09.9]} 23...
Rfe8 {[%clk 0:02:08.4]} 24. g4 {[%clk 0:00:10]} 24... Ba4 {[%clk 0:02:07.3]} 25.
Rd2 {[%clk 0:00:09.5]} 25... e5 {[%clk 0:02:07.5]} 26. h4 {[%clk 0:00:08.5]}
26... e4 {[%clk 0:02:08]} 27. Qd4 {[%clk 0:00:08.1]} 27... exf3 {[%clk
0:02:07.5]} 28. Bd3 {[%clk 0:00:08.2]} 28... Ne4 {[%clk 0:02:06.8]} 29. Rdh2
{[%clk 0:00:07.9]} 29... Qb8 {[%clk 0:02:02]} 30. g5 {[%clk 0:00:07.2]} 30... h5
{[%clk 0:02:02.6]} 31. g6 {[%clk 0:00:06.9]} 31... Qf4+ {[%clk 0:02:01.3]} 32.
Kb2 {[%clk 0:00:06.1]} 32... Qe5 {[%clk 0:02:00.1]} 33. Qxe5 {[%clk 0:00:06.2]}
33... Rxe5 {[%clk 0:02:01]} 34. gxf7+ {[%clk 0:00:06.4]} 34... Kxf7 {[%clk
0:02:01.9]} 35. Rf1 {[%clk 0:00:06.5]} 35... Rf5 {[%clk 0:02:00.7]} 36. Be2
{[%clk 0:00:06.7]} 36... Rxc2+ {[%clk 0:01:57.7]} 37. Ka1 {[%clk 0:00:06.7]}
37... Ng3 {[%clk 0:01:55.9]} 38. Bxf3 {[%clk 0:00:02.5]} 38... Rxh2 {[%clk
0:01:53.8]} 39. Bxd5+ {[%clk 0:00:02.4]} 39... Kg6 {[%clk 0:01:50.7]} 40. Rg1
{[%clk 0:00:02.6]} 40... Rxd5 {[%clk 0:01:51]} 0-1

[Event "Late-Titled-Tuesday-Blitz-March-26-2024"]
[Site "Chess.com"]
[Date "2024.03.26"]
[Round "1"]
[White "aceontheturn"]
[Black "Shiner22"]
[Result "1-0"]
[WhiteElo "2747"]
[BlackElo "2400"]
[TimeControl "180+1"]
[EndTime "14:05:49 PDT"]
[Termination "aceontheturn won by resignation"]

1. e4 {[%clk 0:02:58.8]} 1... c5 {[%clk 0:02:59.6]} 2. Nc3 {[%clk 0:02:58.9]}
2... Nc6 {[%clk 0:02:59.9]} 3. Bb5 {[%clk 0:02:59.1]} 3... Nd4 {[%clk
0:02:59.3]} 4. Bc4 {[%clk 0:02:59.5]} 4... g6 {[%clk 0:02:58.5]} 5. Nge2 {[%clk
0:02:59.9]} 5... Bg7 {[%clk 0:02:57.8]} 6. Nxd4 {[%clk 0:03:00.5]} 6... cxd4
{[%clk 0:02:57.9]} 7. Qf3 {[%clk 0:03:01.4]} 7... Nf6 {[%clk 0:02:43.7]} 8. e5
{[%clk 0:03:00.4]} 8... dxc3 {[%clk 0:02:37.8]} 9. dxc3 {[%clk 0:02:55]} 9...
Qb6 {[%clk 0:02:32.1]} 10. exf6 {[%clk 0:02:53.6]} 10... Qxf6 {[%clk 0:02:31.5]}
11. Qxf6 {[%clk 0:02:52.6]} 11... Bxf6 {[%clk 0:02:31.4]} 12. Bh6 {[%clk
0:02:53]} 12... e6 {[%clk 0:02:10.2]} 13. O-O-O {[%clk 0:02:51.4]} 13... d5
{[%clk 0:02:10.2]} 14. Bd3 {[%clk 0:02:48.4]} 14... Bd7 {[%clk 0:02:05.3]} 15.
Rhe1 {[%clk 0:02:47.1]} 15... O-O-O {[%clk 0:02:02.2]} 16. Bf4 {[%clk
0:02:47.3]} 16... g5 {[%clk 0:01:54.2]} 17. Be5 {[%clk 0:02:44.7]} 17... Bxe5
{[%clk 0:01:53.6]} 18. Rxe5 {[%clk 0:02:45.6]} 18... f6 {[%clk 0:01:53.7]} 19.
Re3 {[%clk 0:02:46.3]} 19... h5 {[%clk 0:01:51.4]} 20. c4 {[%clk 0:02:41.6]}
20... d4 {[%clk 0:01:49.7]} 21. Ree1 {[%clk 0:02:32]} 21... e5 {[%clk
0:01:48.5]} 22. Be4 {[%clk 0:02:27.3]} 22... Bc6 {[%clk 0:01:37.9]} 23. f3
{[%clk 0:02:27.3]} 23... Kc7 {[%clk 0:01:36.8]} 24. Kd2 {[%clk 0:02:27.1]} 24...
h4 {[%clk 0:01:33.3]} 25. h3 {[%clk 0:02:25.9]} 25... Rhf8 {[%clk 0:01:31.9]}
26. b4 {[%clk 0:02:25.4]} 26... f5 {[%clk 0:01:15.2]} 27. Bxc6 {[%clk
0:02:24.7]} 27... bxc6 {[%clk 0:01:07]} 28. Rxe5 {[%clk 0:02:23.6]} 28... g4
{[%clk 0:01:04.9]} 29. Rde1 {[%clk 0:02:13.3]} 29... gxf3 {[%clk 0:01:00.6]} 30.
gxf3 {[%clk 0:02:14.2]} 30... Rd7 {[%clk 0:00:57.3]} 31. Rc5 {[%clk 0:02:05.4]}
31... a6 {[%clk 0:00:34.2]} 32. Re6 {[%clk 0:02:04.1]} 32... Rd6 {[%clk
0:00:31.4]} 33. Rxd6 {[%clk 0:01:56.2]} 33... Kxd6 {[%clk 0:00:31.4]} 34. Kd3
{[%clk 0:01:57.1]} 34... Rg8 {[%clk 0:00:26.4]} 35. Rxf5 {[%clk 0:01:56.5]}
35... Rg3 {[%clk 0:00:26]} 36. Kxd4 {[%clk 0:01:56]} 36... Rxh3 {[%clk
0:00:26.1]} 37. Rf6+ {[%clk 0:01:54.1]} 37... Kd7 {[%clk 0:00:21.5]} 38. Rh6
{[%clk 0:01:53.8]} 38... Rxf3 {[%clk 0:00:20.2]} 39. Rxh4 {[%clk 0:01:53.6]}
39... Rf2 {[%clk 0:00:19.8]} 40. Kc5 {[%clk 0:01:51.6]} 40... Rxc2 {[%clk
0:00:17.4]} 41. Rh7+ {[%clk 0:01:52]} 41... Ke6 {[%clk 0:00:16.1]} 42. a4 {[%clk
0:01:52.9]} 42... Ra2 {[%clk 0:00:15.4]} 43. a5 {[%clk 0:01:52.7]} 43... Rc2
{[%clk 0:00:14.2]} 44. Rc7 {[%clk 0:01:52.9]} 1-0

[Event "Late-Titled-Tuesday-Blitz-March-26-2024"]
[Site "Chess.com"]
[Date "2024.03.26"]
[Round "1"]
[White "Keks2017"]
[Black "Christian_Jordan"]
[Result "1-0"]
[WhiteElo "2561"]
[BlackElo "2058"]
[TimeControl "180+1"]
[EndTime "14:05:54 PDT"]
[Termination "Keks2017 won on time"]

1. e4 {[%clk 0:02:59.8]} 1... e6 {[%clk 0:02:58.8]} 2. d4 {[%clk 0:02:56.5]}
2... d5 {[%clk 0:02:58.2]} 3. e5 {[%clk 0:02:56.7]} 3... c5 {[%clk 0:02:57.5]}
4. c3 {[%clk 0:02:56.8]} 4... Bd7 {[%clk 0:02:55.9]} 5. Nf3 {[%clk 0:02:56.7]}
5... Qb6 {[%clk 0:02:55.2]} 6. a3 {[%clk 0:02:56.7]} 6... cxd4 {[%clk
0:02:54.4]} 7. cxd4 {[%clk 0:02:56]} 7... Bb5 {[%clk 0:02:53.8]} 8. Bxb5+ {[%clk
0:02:55.7]} 8... Qxb5 {[%clk 0:02:53.5]} 9. Nc3 {[%clk 0:02:55.7]} 9... Qd7
{[%clk 0:02:52.8]} 10. O-O {[%clk 0:02:54.7]} 10... Nc6 {[%clk 0:02:51.8]} 11.
Re1 {[%clk 0:02:53.8]} 11... Nge7 {[%clk 0:02:50.9]} 12. h4 {[%clk 0:02:51.5]}
12... Nc8 {[%clk 0:02:31.5]} 13. h5 {[%clk 0:02:50.6]} 13... h6 {[%clk
0:02:30.6]} 14. Qd2 {[%clk 0:02:39.9]} 14... Be7 {[%clk 0:02:27.5]} 15. Qf4
{[%clk 0:02:39.7]} 15... O-O {[%clk 0:01:52.2]} 16. Qg4 {[%clk 0:02:37.1]} 16...
f5 {[%clk 0:01:46.7]} 17. Qg6 {[%clk 0:02:25]} 17... Kh8 {[%clk 0:01:20.2]} 18.
Ne2 {[%clk 0:02:14.7]} 18... Bd8 {[%clk 0:01:10.3]} 19. Nf4 {[%clk 0:02:11.3]}
19... Re8 {[%clk 0:00:46.6]} 20. Be3 {[%clk 0:02:10.8]} 20... Bb6 {[%clk
0:00:34.3]} 21. Rad1 {[%clk 0:02:07.5]} 21... Nd8 {[%clk 0:00:33.4]} 22. Nh4
{[%clk 0:02:02.3]} 22... Ne7 {[%clk 0:00:32.7]} 23. Qg3 {[%clk 0:02:01.6]} 23...
Nf7 {[%clk 0:00:20.4]} 24. Nfg6+ {[%clk 0:01:55.7]} 24... Nxg6 {[%clk
0:00:19.2]} 25. hxg6 {[%clk 0:01:46.4]} 25... Nd8 {[%clk 0:00:15.2]} 26. Qf3
{[%clk 0:01:45.9]} 26... Kg8 {[%clk 0:00:13]} 27. Qh5 {[%clk 0:01:45.6]} 27...
Qe7 {[%clk 0:00:11.2]} 28. f3 {[%clk 0:01:35.8]} 28... Nc6 {[%clk 0:00:10.4]}
29. g4 {[%clk 0:01:29.5]} 29... f4 {[%clk 0:00:07.7]} 30. Bf2 {[%clk 0:01:28.2]}
30... Rac8 {[%clk 0:00:05]} 31. Ng2 {[%clk 0:01:27.8]} 31... Na5 {[%clk
0:00:04.8]} 32. Nxf4 {[%clk 0:01:25.9]} 1-0

[Event "Late-Titled-Tuesday-Blitz-March-26-2024"]
[Site "Chess.com"]
[Date "2024.03.26"]
[Round "1"]
[White "BallottiLuca"]
[Black "stolencandy13"]
[Result "0-1"]
[WhiteElo "2345"]
[BlackElo "2657"]
[TimeControl "180+1"]
[EndTime "14:05:55 PDT"]
[Termination "stolencandy13 won by resignation"]

1. b3 {[%clk 0:03:00]} 1... d5 {[%clk 0:02:59.2]} 2. Bb2 {[%clk 0:02:58.1]} 2...
Nf6 {[%clk 0:02:59.6]} 3. e3 {[%clk 0:02:56.1]} 3... c6 {[%clk 0:02:58.7]} 4. f4
{[%clk 0:02:52.6]} 4... Bg4 {[%clk 0:02:57.3]} 5. Be2 {[%clk 0:02:50.3]} 5...
Bxe2 {[%clk 0:02:53.1]} 6. Qxe2 {[%clk 0:02:51.1]} 6... Nbd7 {[%clk 0:02:54]} 7.
Nf3 {[%clk 0:02:49.1]} 7... e6 {[%clk 0:02:53.5]} 8. O-O {[%clk 0:02:45.2]} 8...
Bd6 {[%clk 0:02:52.6]} 9. Ne5 {[%clk 0:02:43.7]} 9... Qc7 {[%clk 0:02:49.5]} 10.
Nd3 {[%clk 0:02:33.1]} 10... e5 {[%clk 0:02:43.6]} 11. fxe5 {[%clk 0:02:32.6]}
11... Nxe5 {[%clk 0:02:44]} 12. Nxe5 {[%clk 0:02:26]} 12... Bxe5 {[%clk
0:02:43.9]} 13. Bxe5 {[%clk 0:02:26.8]} 13... Qxe5 {[%clk 0:02:44.5]} 14. Nc3
{[%clk 0:02:25.7]} 14... O-O {[%clk 0:02:34.4]} 15. Qd3 {[%clk 0:02:25.6]} 15...
Rad8 {[%clk 0:02:30.3]} 16. Rf5 {[%clk 0:02:25.2]} 16... Qe6 {[%clk 0:02:30.4]}
17. Raf1 {[%clk 0:02:25.3]} 17... Ne4 {[%clk 0:02:21.9]} 18. Ne2 {[%clk
0:02:09]} 18... g6 {[%clk 0:02:00.8]} 19. R5f4 {[%clk 0:02:06.5]} 19... Qe5
{[%clk 0:01:48.8]} 20. b4 {[%clk 0:01:56.7]} 20... a6 {[%clk 0:01:48.5]} 21. Nd4
{[%clk 0:01:56.1]} 21... f5 {[%clk 0:01:41.3]} 22. a4 {[%clk 0:01:53.7]} 22...
Rfe8 {[%clk 0:01:39.3]} 23. a5 {[%clk 0:01:51.5]} 23... Qd6 {[%clk 0:01:34.1]}
24. c3 {[%clk 0:01:49.6]} 24... Ng5 {[%clk 0:01:26.6]} 25. R4f2 {[%clk
0:01:43.9]} 25... Re4 {[%clk 0:01:22.7]} 26. Nb3 {[%clk 0:01:35.5]} 26... Rde8
{[%clk 0:01:13.6]} 27. Nc5 {[%clk 0:01:35.4]} 27... Rh4 {[%clk 0:01:11.6]} 28.
h3 {[%clk 0:01:26.1]} 28... Qg3 {[%clk 0:01:01.6]} 0-1

[Event "Late-Titled-Tuesday-Blitz-March-26-2024"]
[Site "Chess.com"]
[Date "2024.03.26"]
[Round "1"]
[White "rikchessmx"]
[Black "Oleg_Papayan"]
[Result "0-1"]
[WhiteElo "2279"]
[BlackElo "2611"]
[TimeControl "180+1"]
[EndTime "14:05:57 PDT"]
[Termination "Oleg_Papayan won by resignation"]

1. e4 {[%clk 0:02:51.3]} 1... c5 {[%clk 0:02:55.6]} 2. Nf3 {[%clk 0:02:50.7]}
2... e6 {[%clk 0:02:56.3]} 3. d4 {[%clk 0:02:49.7]} 3... cxd4 {[%clk 0:02:57.2]}
4. Nxd4 {[%clk 0:02:49.6]} 4... a6 {[%clk 0:02:57.8]} 5. Nc3 {[%clk 0:02:50.3]}
5... Qc7 {[%clk 0:02:57.9]} 6. Bd3 {[%clk 0:02:50.7]} 6... Nf6 {[%clk
0:02:58.3]} 7. Qe2 {[%clk 0:02:49.6]} 7... h5 {[%clk 0:02:58.7]} 8. h3 {[%clk
0:02:49.1]} 8... Nc6 {[%clk 0:02:58.4]} 9. Nxc6 {[%clk 0:02:48.9]} 9... bxc6
{[%clk 0:02:58.1]} 10. b3 {[%clk 0:02:47.4]} 10... Bb4 {[%clk 0:02:56.4]} 11.
Bd2 {[%clk 0:02:46.3]} 11... Qe5 {[%clk 0:02:55]} 12. f4 {[%clk 0:02:40.6]}
12... Qa5 {[%clk 0:02:53.4]} 13. Nb1 {[%clk 0:02:39.3]} 13... Bxd2+ {[%clk
0:02:52.1]} 14. Nxd2 {[%clk 0:02:38.3]} 14... d5 {[%clk 0:02:50.6]} 15. O-O
{[%clk 0:02:36.3]} 15... h4 {[%clk 0:02:49]} 16. c4 {[%clk 0:02:35.6]} 16... Bd7
{[%clk 0:02:44.5]} 17. exd5 {[%clk 0:02:35.2]} 17... cxd5 {[%clk 0:02:43.2]} 18.
cxd5 {[%clk 0:02:35.2]} 18... Nxd5 {[%clk 0:02:40.2]} 19. f5 {[%clk 0:02:32.2]}
19... O-O {[%clk 0:02:34.8]} 20. Nc4 {[%clk 0:02:30.9]} 20... Qc3 {[%clk
0:02:33.3]} 21. Rac1 {[%clk 0:02:20.6]} 21... Qd4+ {[%clk 0:02:33.3]} 22. Kh1
{[%clk 0:02:20.4]} 22... Nf4 {[%clk 0:02:31.8]} 23. Rxf4 {[%clk 0:02:13.2]}
23... Qxf4 {[%clk 0:02:31.3]} 24. Rf1 {[%clk 0:02:13.8]} 24... Qg5 {[%clk
0:02:31.1]} 25. f6 {[%clk 0:02:12.4]} 25... g6 {[%clk 0:02:27.3]} 26. Ne5 {[%clk
0:02:04.3]} 26... Bb5 {[%clk 0:02:26.8]} 27. Bxb5 {[%clk 0:01:42.2]} 27... axb5
{[%clk 0:02:27.7]} 28. Rf2 {[%clk 0:01:19.2]} 28... b4 {[%clk 0:02:21.7]} 29.
Kh2 {[%clk 0:01:10.6]} 29... Qg3+ {[%clk 0:02:17.1]} 30. Kg1 {[%clk 0:01:09.4]}
30... Rac8 {[%clk 0:02:17.6]} 31. Nc4 {[%clk 0:01:09]} 31... Rfd8 {[%clk
0:02:14.9]} 32. Rf3 {[%clk 0:01:08.7]} 32... Qg5 {[%clk 0:02:14.9]} 33. Kh2
{[%clk 0:01:00.3]} 33... Rc5 {[%clk 0:02:03.1]} 34. Qe4 {[%clk 0:00:55.9]} 34...
Rf5 {[%clk 0:02:01.8]} 35. Rxf5 {[%clk 0:00:51.4]} 35... gxf5 {[%clk 0:01:58.7]}
36. Qe1 {[%clk 0:00:47.3]} 36... Qg3+ {[%clk 0:01:58.5]} 37. Qxg3+ {[%clk
0:00:47.1]} 37... hxg3+ {[%clk 0:01:59.4]} 38. Kxg3 {[%clk 0:00:47.6]} 38... Ra8
{[%clk 0:02:00.3]} 39. Kf4 {[%clk 0:00:42.6]} 39... Rxa2 {[%clk 0:02:00.5]} 40.
g4 {[%clk 0:00:42.6]} 40... fxg4 {[%clk 0:01:59.9]} 41. hxg4 {[%clk 0:00:43.2]}
41... Ra3 {[%clk 0:01:59.5]} 42. g5 {[%clk 0:00:41.7]} 42... Rxb3 {[%clk
0:01:58.5]} 43. g6 {[%clk 0:00:41.5]} 43... fxg6 {[%clk 0:01:47.1]} 44. Ne5
{[%clk 0:00:39.7]} 44... Rb1 {[%clk 0:01:42.2]} 45. Kg5 {[%clk 0:00:39.5]} 45...
Rg1+ {[%clk 0:01:41.4]} 46. Kh6 {[%clk 0:00:39.7]} 46... b3 {[%clk 0:01:35.4]}
47. Nxg6 {[%clk 0:00:39.3]} 47... Rxg6+ {[%clk 0:01:30.9]} 48. Kxg6 {[%clk
0:00:39.1]} 48... b2 {[%clk 0:01:31.3]} 49. f7+ {[%clk 0:00:39]} 49... Kf8
{[%clk 0:01:30.8]} 50. Kf6 {[%clk 0:00:39.9]} 50... b1=Q {[%clk 0:01:30.5]} 51.
Kxe6 {[%clk 0:00:40.2]} 51... Qg6+ {[%clk 0:01:30.8]} 52. Ke5 {[%clk 0:00:40.3]}
52... Qxf7 {[%clk 0:01:31.7]} 0-1